bitfinex-derivatives/quotes_BTCF0:USTF0_20250417
["timestamp","ask_amount","ask_price","bid_price","bid_amount"]
[1744891612845,0.4118271,84750.0,84749.0,0.1180283]
[1744891613342,0.4118271,84750.0,84749.0,0.2497283]
[1744891614552,0.4118271,84750.0,84749.0,0.1839283]
[1744891614754,0.4128271,84750.0,84749.0,0.1839283]
[1744891615249,0.4118271,84750.0,84749.0,0.1839283]
[1744891615455,0.4128271,84750.0,84749.0,0.1839283]
[1744891616347,0.4228271,84750.0,84749.0,0.1839283]
[1744891616548,0.24,84750.0,84749.0,0.2530283]
[1744891616753,0.161,84750.0,84749.0,0.2530283]
[1744891617054,0.162,84750.0,84749.0,0.2530283]
[1744891617244,0.16208,84750.0,84749.0,0.2530283]
[1744891617448,0.16008,84750.0,84749.0,0.2530283]
[1744891618257,0.16008,84750.0,84749.0,0.2560283]
[1744891618555,0.2780271,84750.0,84749.0,0.2560283]
[1744891618753,0.2781071,84750.0,84749.0,0.2560283]
[1744891618942,0.2781071,84750.0,84749.0,0.2580283]
[1744891619348,0.2781071,84750.0,84749.0,0.2570283]
[1744891620857,0.2781071,84750.0,84749.0,0.2580283]
[1744891621358,0.2781071,84750.0,84749.0,0.2550283]
[1744891621655,0.2781071,84750.0,84749.0,0.0699]
[1744891621956,0.4104071,84750.0,84749.0,0.0659]
[1744891622161,0.5304071,84750.0,84749.0,0.0689]
[1744891622359,0.5304071,84750.0,84749.0,0.003]
[1744891622752,0.5304071,84750.0,84749.0,0.002]
[1744891623551,0.1180285,84749.0,84748.0,0.1180294]
[1744891623860,0.2980285,84749.0,84748.0,0.1180294]
[1744891624052,0.4307285,84749.0,84748.0,0.1180294]
[1744891625147,0.4307285,84749.0,84748.0,0.2522294]
[1744891626063,0.6607285,84749.0,84748.0,0.2522294]
[1744891626254,0.1180313,84747.0,84746.0,0.02]
[1744891626454,0.0590163,84746.0,84745.0,0.059017]
[1744891626760,0.18,84746.0,84745.0,0.059017]
[1744891627055,0.2980327,84746.0,84745.0,0.123917]
[1744891628061,0.2980327,84746.0,84745.0,0.124917]
[1744891628559,0.18,84746.0,84745.0,0.13382881]
[1744891628860,0.18,84746.0,84745.0,0.13482881]
[1744891629162,0.18008,84746.0,84745.0,0.19832881]
[1744891629555,0.2981127,84746.0,84745.0,0.19832881]
[1744891631058,0.18008,84746.0,84745.0,0.19832881]
[1744891631362,0.2981127,84746.0,84745.0,0.19832881]
[1744891631952,0.2980327,84746.0,84745.0,0.19832881]
[1744891632154,0.2981127,84746.0,84745.0,0.19832881]
[1744891632462,0.2981127,84746.0,84745.0,0.21390527]
[1744891635363,0.2981127,84746.0,84745.0,0.19832881]
[1744891636566,0.3634127,84746.0,84745.0,0.13482881]
[1744891637360,0.3634127,84746.0,84745.0,0.06992881]
[1744891637565,0.4322127,84746.0,84745.0,0.06992881]
[1744891637870,0.4322127,84746.0,84745.0,0.01091181]
[1744891638070,0.9830127,84746.0,84745.0,0.002]
[1744891640375,0.9830127,84746.0,84745.0,0.1200341]
[1744891640874,0.9830127,84746.0,84745.0,0.002]
[1744891642073,0.1180522,84732.0,84725.0,0.0590309]
[1744891642277,0.6688522,84732.0,84730.0,0.0590274]
[1744891642476,0.6688522,84732.0,84731.0,0.18813353]
[1744891642774,0.8060522,84732.0,84731.0,0.12891418]
[1744891642972,0.4452522,84732.0,84731.0,0.12891418]
[1744891643375,0.4452522,84732.0,84731.0,0.01086058]
[1744891643575,0.0590268,84731.0,84729.0,0.02]
[1744891643780,0.18,84731.0,84730.0,0.1180549]
[1744891643969,0.17,84731.0,84730.0,0.1180549]
[1744891644166,0.17,84731.0,84730.0,0.19361224]
[1744891645084,0.17108,84731.0,84730.0,0.19961224]
[1744891645379,0.2891336,84731.0,84730.0,0.19961224]
[1744891645583,0.17108,84731.0,84730.0,0.19961224]
[1744891645879,0.2891336,84731.0,84730.0,0.19961224]
[1744891646077,0.2881336,84731.0,84730.0,0.26061224]
[1744891646376,0.2881336,84731.0,84730.0,0.32861224]
[1744891647573,0.2881336,84731.0,84730.0,0.19611224]
[1744891647974,0.2881336,84731.0,84730.0,0.19511224]
[1744891648178,0.2881336,84731.0,84730.0,0.19611224]
[1744891648378,0.2881336,84731.0,84730.0,0.13111224]
[1744891651183,0.2881336,84731.0,84730.0,0.13011224]
[1744891651382,0.2881336,84731.0,84730.0,0.13111224]
[1744891656086,0.5374336,84731.0,84730.0,0.01305734]
[1744891656286,0.5974336,84731.0,84730.0,0.01305734]
[1744891656491,0.5974336,84731.0,84730.0,0.13111224]
[1744891657385,0.5973536,84731.0,84730.0,0.13111224]
[1744891657585,0.5974336,84731.0,84730.0,0.13111224]
[1744891658095,0.5974336,84731.0,84730.0,0.01305734]
[1744891658390,0.5974336,84731.0,84730.0,0.13111224]
[1744891661388,0.3574336,84731.0,84730.0,0.13111224]
[1744891661588,0.3574336,84731.0,84730.0,0.19731224]
[1744891661790,0.23938,84731.0,84730.0,0.19731224]
[1744891661996,0.3573536,84731.0,84730.0,0.26691224]
[1744891662196,0.3574336,84731.0,84730.0,0.26691224]
[1744891663909,0.3573536,84731.0,84730.0,0.26691224]
[1744891664100,0.3574336,84731.0,84730.0,0.26691224]
[1744891665512,0.3573536,84731.0,84730.0,0.26691224]
[1744891665703,0.3574336,84731.0,84730.0,0.26691224]
[1744891667211,0.2881336,84731.0,84730.0,0.26691224]
[1744891667411,0.2881336,84731.0,84730.0,0.32971224]
[1744891668702,0.17008,84731.0,84730.0,0.32971224]
[1744891668899,0.2881336,84731.0,84730.0,0.32971224]
[1744891669113,0.2880536,84731.0,84730.0,0.32971224]
[1744891669313,0.2881336,84731.0,84730.0,0.32971224]
[1744891671208,0.3515336,84731.0,84730.0,0.26691224]
[1744891671403,0.4198336,84731.0,84730.0,0.26691224]
[1744891675517,0.4198336,84731.0,84730.0,0.19731224]
[1744891676710,0.4198336,84731.0,84730.0,0.13111224]
[1744891680026,0.17008,84731.0,84730.0,0.25911224]
[1744891680212,0.2881336,84731.0,84730.0,0.25911224]
[1744891680418,0.2880536,84731.0,84730.0,0.25911224]
[1744891680618,0.2881336,84731.0,84730.0,0.25911224]
[1744891681819,0.4165336,84731.0,84730.0,0.25911224]
[1744891687431,0.4165336,84731.0,84730.0,0.2480549]
[1744891689432,0.4165336,84731.0,84730.0,0.1862549]
[1744891690829,0.4165336,84731.0,84730.0,0.1200549]
[1744891691018,0.4794336,84731.0,84730.0,0.1200549]
[1744891691830,0.4165336,84731.0,84730.0,0.1200549]
[1744891692029,0.4165336,84731.0,84730.0,0.2492549]
[1744891692222,0.3497336,84731.0,84730.0,0.2492549]
[1744891693131,0.23168,84731.0,84730.0,0.2492549]
[1744891693522,0.2316,84731.0,84730.0,0.2492549]
[1744891693730,0.3497336,84731.0,84730.0,0.2492549]
[1744891694430,0.3497336,84731.0,84730.0,0.26481247]
[1744891695428,0.4144336,84731.0,84730.0,0.26481247]
[1744891695640,0.4144336,84731.0,84730.0,0.2492549]
[1744891697740,0.4144336,84731.0,84730.0,0.26486762]
[1744891698631,0.17008,84731.0,84730.0,0.26486762]
[1744891698825,0.2881336,84731.0,84730.0,0.26486762]
[1744891699028,0.2880536,84731.0,84730.0,0.26486762]
[1744891699227,0.4189336,84731.0,84730.0,0.26486762]
[1744891701134,0.3533336,84731.0,84730.0,0.26486762]
[1744891701333,0.2881336,84731.0,84730.0,0.26486762]
[1744891702022,0.2881336,84731.0,84730.0,0.28486762]
[1744891703140,0.17008,84731.0,84730.0,0.28486762]
[1744891703530,0.2881336,84731.0,84730.0,0.28486762]
[1744891708545,0.3511336,84731.0,84730.0,0.28486762]
[1744891711939,0.4124336,84731.0,84730.0,0.28486762]
[1744891712442,0.3511336,84731.0,84730.0,0.28486762]
[1744891713139,0.3510536,84731.0,84730.0,0.28486762]
[1744891713735,0.3511336,84731.0,84730.0,0.28486762]
[1744891714131,0.00010801,84736.0,84735.0,0.118048]
[1744891714336,0.02010801,84736.0,84735.0,0.313648]
[1744891714534,0.01010801,84736.0,84735.0,0.313648]
[1744891714734,0.01010801,84736.0,84735.0,0.32926072]
[1744891714942,0.00017695,84740.0,84739.0,0.1180424]
[1744891715133,0.11017695,84740.0,84739.0,0.1180424]
[1744891715329,0.22821795,84740.0,84739.0,0.2469424]
[1744891715543,0.22821795,84740.0,84739.0,0.26255512]
[1744891715843,0.22829795,84740.0,84739.0,0.26255512]
[1744891716142,0.22921795,84740.0,84739.0,0.26255512]
[1744891716345,0.22929795,84740.0,84739.0,0.26255512]
[1744891716544,0.29419795,84740.0,84739.0,0.26255512]
[1744891720745,0.35729795,84740.0,84739.0,0.26255512]
[1744891724147,0.23925695,84740.0,84739.0,0.26255512]
[1744891725049,0.35729795,84740.0,84739.0,0.26255512]
[1744891725949,0.35729795,84740.0,84739.0,0.62335512]
[1744891727449,0.35729795,84740.0,84739.0,0.55955512]
[1744891728147,0.42019795,84740.0,84739.0,0.55955512]
[1744891728349,0.41919795,84740.0,84739.0,0.55955512]
[1744891728550,0.41919795,84740.0,84739.0,0.56055512]
[1744891728848,0.11225695,84740.0,84739.0,0.56055512]
[1744891729049,0.0629,84783.0,84739.0,2.49758152]
[1744891729243,0.1229,84783.0,84782.0,0.4787825]
[1744891729847,0.1229,84783.0,84782.0,0.5416825]
[1744891730146,0.12298,84783.0,84782.0,0.6077825]
[1744891730847,0.12298,84783.0,84782.0,0.61888399]
[1744891731441,0.12498,84783.0,84782.0,0.62753795]
[1744891731646,0.12998,84783.0,84782.0,0.62753795]
[1744891732444,0.12598,84783.0,84782.0,0.62753795]
[1744891738362,0.06308,84783.0,84782.0,0.62753795]
[1744891742156,0.00308,84783.0,84782.0,0.62753795]
[1744891742557,0.00308,84783.0,84782.0,0.26673795]
[1744891742859,0.00308,84783.0,84782.0,0.62753795]
[1744891743360,0.00308,84783.0,84782.0,0.26673795]
[1744891743660,0.00308,84783.0,84782.0,0.62753795]
[1744891748554,0.00308,84783.0,84782.0,0.26673795]
[1744891748756,0.00308,84783.0,84782.0,0.62753795]
[1744891749462,0.01308,84783.0,84782.0,0.49853795]
[1744891749853,0.14058,84783.0,84782.0,0.49853795]
[1744891750761,0.07698,84783.0,84782.0,0.55903795]
[1744891750959,0.07698,84783.0,84782.0,0.62013795]
[1744891751961,0.0769,84783.0,84782.0,0.62013795]
[1744891752155,0.07698,84783.0,84782.0,0.62013795]
[1744891755361,0.07698,84783.0,84782.0,0.6363567]
[1744891755562,0.07698,84783.0,84782.0,0.5147567]
[1744891756465,0.07698,84783.0,84782.0,0.62023795]
[1744891758060,0.07698,84783.0,84782.0,0.63634627]
[1744891759070,0.00010801,84790.0,84789.0,0.1179728]
[1744891759268,0.06010801,84790.0,84789.0,0.6091728]
[1744891759461,0.1215,84790.0,84789.0,0.6091728]
[1744891759769,0.12158,84790.0,84789.0,0.62528112]
[1744891760375,0.12358,84790.0,84789.0,0.62528112]
[1744891761670,0.12658,84790.0,84789.0,0.62528112]
[1744891762360,0.12458,84790.0,84789.0,0.62528112]
[1744891762560,0.12658,84790.0,84789.0,0.6091728]
[1744891762856,0.12658,84790.0,84789.0,0.5440728]
[1744891763074,0.19228,84790.0,84789.0,0.5440728]
[1744891764172,0.3102514,84790.0,84789.0,0.1179728]
[1744891765775,0.3102514,84790.0,84786.0,0.058988]
[1744891765776,0.117977,84786.0,84785.0,0.02]
[1744891766069,0.117977,84786.0,84785.0,0.1179784]
[1744891766070,0.297977,84786.0,84785.0,0.1179784]
[1744891766264,0.484377,84786.0,84785.0,0.1179784]
[1744891766978,0.485377,84786.0,84785.0,0.1179784]
[1744891767868,0.3674,84786.0,84785.0,0.1179784]
[1744891768171,0.487377,84786.0,84785.0,0.1179784]
[1744891770275,0.3694,84786.0,84785.0,0.1179784]
[1744891770477,0.3046,84786.0,84785.0,0.1179784]
[1744891770987,0.3046,84786.0,84785.0,0.1775784]
[1744891771469,0.2427,84786.0,84785.0,0.5383784]
[1744891772181,0.24278,84786.0,84785.0,0.5383784]
[1744891772573,0.18308,84786.0,84785.0,0.5383784]
[1744891773371,0.18308,84786.0,84785.0,0.5980784]
[1744891774481,0.183,84786.0,84785.0,0.5980784]
[1744891774690,0.18308,84786.0,84785.0,0.5980784]
[1744891782090,0.18308,84786.0,84785.0,0.6767584]
[1744891795906,0.18308,84786.0,84785.0,0.5980784]
[1744891796105,0.301057,84786.0,84785.0,0.3608]
[1744891796310,0.382757,84786.0,84785.0,0.4787784]
[1744891796608,0.444957,84786.0,84785.0,0.4787784]
[1744891799597,0.444957,84786.0,84785.0,0.1179784]
[1744891800009,0.0589906,84783.0,84772.0,0.23837989]
[1744891800201,0.1179923,84775.0,84774.0,0.17715845]
[1744891800401,0.18,84775.0,84774.0,0.18598345]
[1744891800613,0.363,84775.0,84774.0,0.19735196]
[1744891801209,0.36308,84775.0,84774.0,0.19735196]
[1744891801803,0.4810723,84775.0,84774.0,0.18598345]
[1744891802913,0.36308,84775.0,84774.0,0.54978345]
[1744891803110,0.4810723,84775.0,84774.0,0.54978345]
[1744891803300,0.36308,84775.0,84774.0,0.54978345]
[1744891804016,0.36308,84775.0,84774.0,0.54878345]
[1744891804215,0.4810723,84775.0,84774.0,0.54878345]
[1744891804415,0.36308,84775.0,84774.0,0.54878345]
[1744891804619,0.36308,84775.0,84774.0,0.67128345]
[1744891805102,0.4810723,84775.0,84774.0,0.67128345]
[1744891805613,0.4810723,84775.0,84774.0,0.67328345]
[1744891805809,0.4810723,84775.0,84774.0,0.54978345]
[1744891806003,0.4810723,84775.0,84774.0,0.54778345]
[1744891806210,0.4810723,84775.0,84774.0,0.54978345]
[1744891806717,0.4810723,84775.0,84774.0,0.54778345]
[1744891806912,0.4810723,84775.0,84774.0,0.54978345]
[1744891807110,0.36308,84775.0,84774.0,0.54978345]
[1744891807417,0.36308,84775.0,84774.0,0.67618345]
[1744891807615,0.30318,84775.0,84774.0,0.67618345]
[1744891807918,0.2385,84775.0,84774.0,0.67618345]
[1744891808114,0.23858,84775.0,84774.0,0.67618345]
[1744891809105,0.23858,84775.0,84774.0,0.67418345]
[1744891809403,0.23858,84775.0,84774.0,0.67618345]
[1744891814019,0.3565723,84775.0,84774.0,0.67618345]
[1744891814220,0.4171723,84775.0,84774.0,0.67618345]
[1744891814420,0.4818723,84775.0,84774.0,0.67618345]
[1744891816216,0.4818723,84775.0,84774.0,0.31538345]
[1744891816513,0.4818723,84775.0,84774.0,0.67618345]
[1744891817925,0.36388,84775.0,84774.0,0.67618345]
[1744891818326,0.4818723,84775.0,84774.0,0.67618345]
[1744891819230,0.4818723,84775.0,84774.0,0.67418345]
[1744891819417,0.4818723,84775.0,84774.0,0.67618345]
[1744891821430,0.29918,84775.0,84774.0,0.67618345]
[1744891821619,0.23858,84775.0,84774.0,0.67618345]
[1744891822830,0.3565723,84775.0,84774.0,0.37280195]
[1744891823022,0.0590073,84762.0,84761.0,0.1770094]
[1744891823321,0.1290073,84762.0,84761.0,0.3031094]
[1744891824023,0.1290073,84762.0,84761.0,0.31432253]
[1744891824223,0.1916073,84762.0,84761.0,0.31432253]
[1744891824814,0.2562073,84762.0,84761.0,0.31432253]
[1744891825016,0.2562073,84762.0,84761.0,0.31732253]
[1744891825615,0.2562073,84762.0,84761.0,0.3263455]
[1744891826130,0.2562073,84762.0,84761.0,0.3313455]
[1744891826627,0.2562073,84762.0,84753.0,0.00017695]
[1744891826628,0.0590091,84757.0,84739.0,0.3608]
[1744891826944,0.4788327,84746.0,84740.0,0.1180406]
[1744891827124,0.6688327,84746.0,84738.0,0.0590218]
[1744891827325,0.8555327,84746.0,84737.0,0.1221]
[1744891827531,0.8555327,84746.0,84740.0,0.0590198]
[1744891827737,0.8555327,84746.0,84745.0,0.01107402]
[1744891827925,0.1180438,84738.0,84737.0,0.00011765]
[1744891828121,0.6688438,84738.0,84737.0,0.00011765]
[1744891828834,0.7910438,84738.0,84737.0,0.00011765]
[1744891829034,0.7910438,84738.0,84737.0,0.00880772]
[1744891829238,0.7910438,84738.0,84737.0,0.00011765]
[1744891829825,0.7910438,84738.0,84737.0,0.00211765]
[1744891830229,0.7910438,84738.0,84737.0,0.00411765]
[1744891830828,0.7910438,84738.0,84737.0,0.12016285]
[1744891831024,0.7930438,84738.0,84737.0,0.00211765]
[1744891833541,0.7930438,84738.0,84737.0,0.01085553]
[1744891836541,0.4322438,84738.0,84737.0,0.01085553]
[1744891836845,0.7930438,84738.0,84737.0,0.01085553]
[1744891837844,0.1180591,84727.0,84726.0,0.07788]
[1744891838049,0.1180591,84727.0,84718.0,0.07788]
[1744891838050,0.1180689,84720.0,84718.0,0.07788]
[1744891838234,0.11808,84712.0,84711.0,0.01122457]
[1744891838436,0.18808,84712.0,84711.0,0.3230603]
[1744891838945,0.18808,84712.0,84711.0,0.33430766]
[1744891839133,0.24798,84712.0,84711.0,0.33430766]
[1744891839445,0.24798,84712.0,84711.0,0.3230603]
[1744891839747,0.24898,84712.0,84711.0,0.3280603]
[1744891840453,0.24898,84712.0,84711.0,0.3310603]
[1744891840638,0.24898,84712.0,84711.0,0.33973116]
[1744891841350,0.24898,84712.0,84711.0,0.09455086]
[1744891841548,0.31128,84712.0,84711.0,0.09455086]
[1744891841843,0.31128,84712.0,84711.0,0.08588]
[1744891842050,0.31128,84712.0,84711.0,0.008]
[1744891842243,0.1180912,84704.0,84703.0,0.1224]
[1744891842544,0.2290456,84704.0,84703.0,0.1180926]
[1744891842748,0.118094,84702.0,84701.0,0.0593]
[1744891843040,0.1180954,84701.0,84700.0,0.1]
[1744891843241,0.4957954,84701.0,84700.0,0.1]
[1744891845640,0.4967954,84701.0,84700.0,0.101]
[1744891845940,0.4977954,84701.0,84700.0,0.102]
[1744891846340,0.7577954,84701.0,84700.0,0.102]
[1744891846648,0.4977954,84701.0,84700.0,0.102]
[1744891846955,0.4967954,84701.0,84700.0,0.101]
[1744891852040,0.8575954,84701.0,84700.0,0.101]
[1744891853554,0.8575954,84701.0,84700.0,0.163]
[1744891853856,0.177157,84695.0,84693.0,0.00507713]
[1744891854050,0.0606,84694.0,84693.0,0.06707713]
[1744891854254,0.2506,84694.0,84693.0,0.06707713]
[1744891855454,0.2506,84694.0,84693.0,0.06807713]
[1744891855655,0.3687051,84694.0,84693.0,0.18618363]
[1744891856050,0.3687051,84694.0,84693.0,0.24518363]
[1744891856355,0.3707051,84694.0,84693.0,0.24518363]
[1744891856752,0.7315051,84694.0,84693.0,0.24518363]
[1744891856966,0.1181149,84687.0,84686.0,0.3608]
[1744891857150,0.1772002,84676.0,84675.0,0.118125]
[1744891857343,0.3672002,84676.0,84675.0,0.12699877]
[1744891857946,0.19,84676.0,84675.0,0.18606447]
[1744891858145,0.3081302,84676.0,84675.0,0.18606447]
[1744891858351,0.3091302,84676.0,84675.0,0.18606447]
[1744891858747,0.191,84676.0,84675.0,0.18606447]
[1744891858951,0.192,84676.0,84675.0,0.19860749]
[1744891859448,0.19208,84676.0,84675.0,0.19860749]
[1744891860049,0.192,84676.0,84675.0,0.19860749]
[1744891860262,0.19208,84676.0,84675.0,0.19860749]
[1744891860440,0.192,84676.0,84675.0,0.19860749]
[1744891860647,0.02208,84676.0,84675.0,0.57330749]
[1744891860944,0.02208,84676.0,84675.0,0.93410749]
[1744891861151,0.02208,84676.0,84675.0,0.68410749]
[1744891861451,0.022,84676.0,84675.0,0.68410749]
[1744891861840,0.02208,84676.0,84675.0,0.68410749]
[1744891866652,0.17208,84676.0,84675.0,0.68410749]
[1744891867047,0.2902102,84676.0,84675.0,0.68410749]
[1744891867756,0.3530102,84676.0,84675.0,0.68410749]
[1744891867964,0.4162102,84676.0,84675.0,0.68410749]
[1744891869858,0.4162102,84676.0,84675.0,0.55940749]
[1744891870363,0.4162102,84676.0,84675.0,0.3618]
[1744891870558,0.1181456,84667.0,84666.0,0.18623753]
[1744891870756,0.1181456,84665.0,84662.0,0.0201458]
[1744891870956,0.1181512,84661.0,84660.0,0.4789526]
[1744891871156,0.2281512,84661.0,84660.0,0.4789526]
[1744891871765,0.2281512,84661.0,84660.0,0.4790326]
[1744891872157,0.2281512,84661.0,84660.0,0.48809519]
[1744891872568,0.2291512,84661.0,84660.0,0.48809519]
[1744891873066,0.2291512,84661.0,84660.0,0.61099519]
[1744891873763,0.2301512,84661.0,84660.0,0.61099519]
[1744891876364,0.07944821,84661.0,84660.0,0.61099519]
[1744891876669,0.13944821,84661.0,84660.0,0.48809519]
[1744891876858,0.26404821,84661.0,84660.0,0.48809519]
[1744891877364,0.26404821,84661.0,84660.0,0.61369519]
[1744891878862,0.06,84661.0,84660.0,0.61369519]
[1744891879457,0.05923685,84684.0,84680.0,0.1181247]
[1744891879770,0.1181288,84677.0,84676.0,0.02]
[1744891879972,0.0590691,84673.0,84672.0,0.0790666]
[1744891880171,0.2190691,84673.0,84672.0,0.0590666]
[1744891880469,0.3962782,84673.0,84672.0,0.0590666]
[1744891881568,0.3962782,84673.0,84672.0,0.0600666]
[1744891882580,0.3972782,84673.0,84672.0,0.0610666]
[1744891903287,0.3972782,84673.0,84672.0,0.002]
[1744891907487,0.3972782,84673.0,84660.0,0.00906259]
[1744891907488,0.0590705,84669.0,84660.0,0.00906259]
[1744891907696,0.1181442,84666.0,84663.0,0.02]
[1744891907883,0.1181484,84663.0,84662.0,0.2000497]
[1744891908083,0.2981484,84663.0,84662.0,0.1800498]
[1744891908393,0.3617484,84663.0,84662.0,0.1800498]
[1744891908594,0.0590651,84677.0,84674.0,0.0590643]
[1744891908894,0.05,84677.0,84676.0,0.4789302]
[1744891909091,0.05923715,84684.0,84683.0,0.1181205]
[1744891909296,0.1771842,84682.0,84681.0,0.1181224]
[1744891909505,0.2071842,84682.0,84681.0,0.2414224]
[1744891909692,0.2072642,84682.0,84681.0,0.2414224]
[1744891911386,0.2082642,84682.0,84681.0,0.2414224]
[1744891916594,0.03108,84682.0,84681.0,0.2414224]
[1744891917004,0.1492019,84682.0,84681.0,0.2414224]
[1744891917593,0.2127019,84682.0,84681.0,0.2414224]
[1744891920193,0.2722019,84682.0,84681.0,0.2414224]
[1744891929103,0.2127019,84682.0,84681.0,0.2414224]
[1744891930211,0.03108,84682.0,84681.0,0.2414224]
[1744891930804,0.1492019,84682.0,84681.0,0.2414224]
[1744891931004,0.1491219,84682.0,84681.0,0.2414224]
[1744891931214,0.1492019,84682.0,84681.0,0.2414224]
[1744891932026,0.03108,84682.0,84681.0,0.2414224]
[1744891932230,0.09268,84682.0,84681.0,0.2414224]
[1744891932537,0.2108019,84682.0,84681.0,0.2414224]
[1744891932836,0.09268,84682.0,84681.0,0.2414224]
[1744891934929,0.2108019,84682.0,84681.0,0.2414224]
[1744891935142,0.09268,84682.0,84681.0,0.2414224]
[1744891937338,0.09268,84682.0,84681.0,0.6022224]
[1744891938829,0.00014581,84688.0,84687.0,0.1181149]
[1744891939031,0.063,84694.0,84693.0,0.1181065]
[1744891939238,0.2311051,84694.0,84693.0,0.4789065]
[1744891939432,0.113,84694.0,84693.0,0.4789065]
[1744891939638,0.2311051,84694.0,84693.0,0.6031065]
[1744891940029,0.2945051,84694.0,84693.0,0.6031065]
[1744891940840,0.2965051,84694.0,84693.0,0.6031065]
[1744891941727,0.3015051,84694.0,84693.0,0.61708794]
[1744891942128,0.12,84694.0,84693.0,0.61708794]
[1744891944224,0.12008,84694.0,84693.0,0.61708794]
[1744891944624,0.2381851,84694.0,84693.0,0.61708794]
[1744891944925,0.12008,84694.0,84693.0,0.61708794]
[1744891946325,0.18188,84694.0,84693.0,0.61708794]
[1744891949740,0.2999851,84694.0,84693.0,0.61708794]
[1744891950039,0.2999851,84694.0,84693.0,0.49288794]
[1744891950240,0.1181093,84691.0,84690.0,0.02]
[1744891950440,0.1181135,84688.0,84687.0,0.02]
[1744891950635,0.1181135,84688.0,84687.0,0.1181149]
[1744891950636,0.3962283,84688.0,84687.0,0.1181149]
[1744891950833,0.5213283,84688.0,84687.0,0.1181149]
[1744891951741,0.5243283,84688.0,84687.0,0.1181149]
[1744891952442,0.3471574,84688.0,84687.0,0.1181149]
[1744891953630,0.3481574,84688.0,84687.0,0.1181149]
[1744891956139,0.2246,84688.0,84687.0,0.1181149]
[1744891956345,0.3427135,84688.0,84687.0,0.3041149]
[1744891956740,0.3427935,84688.0,84687.0,0.3041149]
[1744891957949,0.4041935,84688.0,84687.0,0.3041149]
[1744891958443,0.4041935,84688.0,84687.0,0.6649149]
[1744891959535,0.4041935,84688.0,84687.0,0.6003149]
[1744891960044,0.4041935,84688.0,84687.0,0.4789149]
[1744891960242,0.4041935,84688.0,84687.0,0.1181149]
[1744891964654,0.1181163,84686.0,84685.0,0.11829447]
[1744891964855,0.2781163,84686.0,84685.0,0.11829447]
[1744891965154,0.4665163,84686.0,84685.0,0.11829447]
[1744891965854,0.4685163,84686.0,84685.0,0.11829447]
[1744891972643,0.4034163,84686.0,84685.0,0.11829447]
[1744891972848,0.3432163,84686.0,84685.0,0.23599447]
[1744891973752,0.3432963,84686.0,84685.0,0.23599447]
[1744891974346,0.22518,84686.0,84685.0,0.23599447]
[1744891974548,0.2251,84686.0,84685.0,0.23599447]
[1744891974848,0.3432963,84686.0,84685.0,0.23599447]
[1744891980653,0.22518,84686.0,84685.0,0.23599447]
[1744891980849,0.3432963,84686.0,84685.0,0.23599447]
[1744891981752,0.22518,84686.0,84685.0,0.23599447]
[1744891981954,0.3432963,84686.0,84685.0,0.23599447]
[1744891983356,0.22518,84686.0,84685.0,0.23599447]
[1744891983749,0.16208,84686.0,84685.0,0.23599447]
[1744891984359,0.00010801,84690.0,84689.0,0.1181121]
[1744891984554,0.0608,84692.0,84691.0,0.1181093]
[1744891984755,0.0708,84692.0,84691.0,0.1181093]
[1744891985065,0.0708,84692.0,84691.0,0.2423093]
[1744891985654,0.07088,84692.0,84691.0,0.2423093]
[1744891985962,0.005,84696.0,84695.0,0.1181037]
[1744891986162,0.155,84696.0,84695.0,0.2396037]
[1744891986761,0.15508,84696.0,84695.0,0.2396037]
[1744891987960,0.15708,84696.0,84695.0,0.2396037]
[1744891988360,0.157,84696.0,84695.0,0.2396037]
[1744891988556,0.161,84696.0,84695.0,0.2406037]
[1744891988754,0.16108,84696.0,84695.0,0.2406037]
[1744891990761,0.28128,84696.0,84695.0,0.2406037]
[1744891991653,0.3993823,84696.0,84695.0,0.2406037]
[1744891993065,0.3404823,84696.0,84695.0,0.2406037]
[1744891993859,0.4040823,84696.0,84695.0,0.2406037]
[1744891994161,0.28598,84696.0,84695.0,0.2406037]
[1744891994361,0.4040823,84696.0,84695.0,0.2406037]
[1744891995773,0.28598,84696.0,84695.0,0.2406037]
[1744891995971,0.22238,84696.0,84695.0,0.2406037]
[1744891996470,0.2223,84696.0,84695.0,0.2406037]
[1744891996679,0.22238,84696.0,84695.0,0.2406037]
[1744891998763,0.22238,84696.0,84695.0,0.6014037]
[1744892000076,0.0590413,84711.0,84706.0,0.1180884]
[1744892000373,0.09,84707.0,84706.0,0.4788884]
[1744892000569,0.09,84707.0,84706.0,0.5974884]
[1744892000767,0.09008,84707.0,84706.0,0.6733284]
[1744892001071,0.09,84707.0,84706.0,0.6733284]
[1744892001260,0.09408,84707.0,84706.0,0.6733284]
[1744892001464,0.09408,84707.0,84706.0,0.7334284]
[1744892001671,0.00014581,84718.0,84712.0,0.05904]
[1744892001865,0.0624,84719.0,84718.0,0.1180717]
[1744892002169,0.0624,84719.0,84718.0,0.2967717]
[1744892002363,0.0624,84719.0,84718.0,0.3656117]
[1744892002564,0.0624,84719.0,84718.0,0.37902829]
[1744892002766,0.0724,84719.0,84718.0,0.37902829]
[1744892003572,0.0724,84719.0,84718.0,0.38896079]
[1744892003775,0.0724,84719.0,84718.0,0.38996079]
[1744892006169,0.0724,84719.0,84718.0,0.75076079]
[1744892008079,0.059023,84737.0,84726.0,0.1180605]
[1744892008283,0.00026573,84744.0,84726.0,0.1180605]
[1744892008284,0.01017706,84727.0,84726.0,0.1180605]
[1744892008877,0.01025706,84727.0,84726.0,0.2404605]
[1744892009179,0.00010801,84733.0,84727.0,0.0590295]
[1744892009371,0.04,84733.0,84732.0,0.4788522]
[1744892009573,0.04008,84733.0,84732.0,0.6035522]
[1744892010281,0.04308,84733.0,84732.0,0.6035522]
[1744892010480,0.043,84733.0,84732.0,0.6035522]
[1744892010679,0.04508,84733.0,84732.0,0.6035522]
[1744892011281,0.10898,84733.0,84732.0,0.6035522]
[1744892011994,0.0590165,84746.0,84732.0,0.4855]
[1744892012292,0.0624,84743.0,84742.0,0.1770569]
[1744892012477,0.1524,84743.0,84742.0,0.2406569]
[1744892013482,0.1564,84743.0,84742.0,0.2406569]
[1744892013681,0.2744368,84743.0,84742.0,0.2406569]
[1744892014683,0.1180396,84741.0,84740.0,0.02]
[1744892014884,0.1180396,84741.0,84738.0,0.02]
[1744892014885,0.1180424,84739.0,84738.0,0.02]
[1744892015085,0.1770713,84736.0,84735.0,0.0590237]
[1744892015281,0.3570713,84736.0,84735.0,0.0590237]
[1744892016685,0.3590713,84736.0,84735.0,0.0590237]
[1744892018296,0.118048,84735.0,84734.0,0.00017706]
[1744892018484,0.389448,84735.0,84734.0,0.00017706]
[1744892018991,0.389448,84735.0,84734.0,0.11822646]
[1744892019589,0.391448,84735.0,84734.0,0.11822646]